fUST/lending_fUST_20240906
["ID","MTS","AMOUNT","RATE_DAILY","PERIOD"]
[337312113,1725593473790,-507.67867484,0.00022538,2]
[337312114,1725593473800,-876.54,0.00022556,2]
[337312115,1725593473810,-596.98,0.00022556,2]
[337312116,1725593473821,-524.06840003,0.00022556,2]
[337312117,1725593473831,-1004.06,0.00022556,2]
[337312118,1725593473840,-542.68,0.00022556,2]
[337312119,1725593473851,-500.0,0.00022556,2]
[337312120,1725593473860,-500.0,0.00022556,2]
[337312121,1725593473871,-1328.23,0.00022556,2]
[337312122,1725593473881,-500.0,0.00022556,2]
[337312123,1725593473891,-500.0,0.00022556,2]
[337312124,1725593473900,-615.68,0.00022556,2]
[337312125,1725593473911,-863.59,0.00022556,2]
[337312126,1725593473921,-500.0,0.00022556,2]
[337312127,1725593473932,-526.62,0.00022556,2]
[337312128,1725593473944,-500.0,0.00022556,2]
[337312129,1725593473955,-1059.43,0.00022556,2]
[337312130,1725593473964,-500.0,0.00022556,2]
[337312131,1725593473976,-500.0,0.00022556,2]
[337312132,1725593473988,-500.0,0.00022556,2]
[337312133,1725593474000,-500.0,0.00022556,2]
[337312134,1725593474011,-500.0,0.00022556,2]
[337312135,1725593474024,-500.0,0.00022556,2]
[337312136,1725593474036,-500.0,0.00022556,2]
[337312137,1725593474047,-1281.9,0.00022556,2]
[337312138,1725593474058,-500.0,0.00022556,2]
[337312139,1725593474069,-500.0,0.00022556,2]
[337312140,1725593474080,-578.93,0.00022556,2]
[337312141,1725593474092,-670.95,0.00022556,2]
[337312142,1725593474103,-2461.39,0.00022556,2]
[337312143,1725593474113,-500.0,0.00022556,2]
[337312144,1725593474124,-500.0,0.00022556,2]
[337312145,1725593474135,-1874.78,0.00022556,2]
[337312146,1725593474147,-151.0,0.00022556,7]
[337312147,1725593474160,-973.18,0.00022556,2]
[337312148,1725593474170,-151.0,0.00022556,7]
[337312149,1725593474180,-151.0,0.00022556,7]
[337312150,1725593474192,-151.0,0.00022556,7]
[337312151,1725593474203,-1577.08,0.00022556,2]
[337312152,1725593474212,-500.0,0.00022556,2]
[337312153,1725593474224,-500.0,0.00022556,2]
[337312154,1725593474235,-151.0,0.00022556,7]
[337312155,1725593474246,-500.0,0.00022556,2]
[337312156,1725593474257,-500.0,0.00022556,2]
[337312157,1725593474266,-638.04,0.00022556,2]
[337312158,1725593474276,-500.0,0.00022556,2]
[337312159,1725593474286,-690.77,0.00022556,2]
[337312160,1725593474301,-500.0,0.00022556,2]
[337312161,1725593474311,-500.0,0.00022556,2]
[337312162,1725593474322,-500.0,0.00022556,2]
[337312163,1725593474334,-2150.55,0.00022556,2]
[337312164,1725593474345,-500.0,0.00022556,2]
[337312165,1725593474356,-2199.22,0.00022556,2]
[337312166,1725593474366,-1666.75,0.00022556,2]
[337312167,1725593474376,-3102.05,0.00022556,2]
[337312168,1725593474388,-500.0,0.00022556,2]
[337312169,1725593474399,-12189.54,0.00022556,2]
[337312170,1725593474410,-500.0,0.00022556,2]
[337312171,1725593474421,-575.17,0.00022556,2]
[337312172,1725593474432,-1450.49,0.00022556,2]
[337312173,1725593474441,-2127.99,0.00022556,2]
[337312174,1725593474451,-500.0,0.00022556,2]
[337312175,1725593474461,-500.0,0.00022556,2]
[337312176,1725593474470,-500.0,0.00022556,2]
[337312177,1725593474480,-500.0,0.00022556,2]
[337312178,1725593474491,-1010.3,0.00022556,2]
[337312179,1725593474500,-672.49,0.00022556,2]
[337312180,1725593474510,-500.0,0.00022556,2]
[337312181,1725593474520,-1117.75,0.00022556,2]
[337312182,1725593474530,-917.61,0.00022556,2]
[337312183,1725593474539,-655.17,0.00022556,2]
[337312184,1725593474549,-500.0,0.00022556,2]
[337312185,1725593474560,-891.96,0.00022556,2]
[337312186,1725593474570,-500.0,0.00022556,2]
[337312187,1725593474580,-929.52,0.00022556,2]
[337312188,1725593474589,-3772.49,0.00022556,2]
[337312189,1725593474599,-595.04,0.00022556,2]
[337312190,1725593474609,-25483.24,0.00022556,2]
[337312191,1725593474619,-500.0,0.00022556,2]
[337312192,1725593474629,-500.0,0.00022556,2]
[337312193,1725593474638,-500.0,0.00022556,2]
[337312194,1725593474648,-500.0,0.00022556,2]
[337312195,1725593474657,-500.0,0.00022556,2]
[337312196,1725593474667,-500.0,0.00022556,2]
[337312197,1725593474676,-500.0,0.00022556,2]
[337312198,1725593474686,-537.94,0.00022557,2]
[337312199,1725593474695,-500.0,0.00022557,2]
[337312200,1725593474705,-500.0,0.00022557,2]
[337312201,1725593474716,-1853.75,0.00022557,2]
[337312202,1725593474728,-500.0,0.00022557,2]
[337312203,1725593474739,-500.0,0.00022557,2]
[337312204,1725593474753,-686.4,0.00022557,2]
[337312205,1725593474764,-500.0,0.00022557,2]
[337312206,1725593474775,-546.92,0.00022557,2]
[337312207,1725593474787,-500.0,0.00022557,2]
[337312208,1725593474800,-500.0,0.00022557,2]
[337312209,1725593474812,-500.0,0.00022557,2]
[337312210,1725593474822,-500.0,0.00022557,2]
[337312211,1725593474833,-656.95,0.00022557,2]
[337312212,1725593474844,-500.0,0.00022557,2]
[337312213,1725593474856,-500.0,0.00022557,2]
[337312214,1725593474866,-500.0,0.00022557,2]
[337312215,1725593474876,-378.36478516,0.00022557,2]
[337312216,1725593474888,-500.0,0.00022557,2]
[337312217,1725593474898,-500.0,0.00022557,2]
[337312218,1725593474908,-500.0,0.00022557,2]
[337312219,1725593474918,-500.0,0.00022557,2]
[337312220,1725593474928,-500.0,0.00022557,2]
[337312221,1725593474938,-500.0,0.00022557,2]
[337312222,1725593474948,-500.0,0.00022557,2]
[337312223,1725593474958,-500.0,0.00022557,2]
[337312224,1725593474968,-500.0,0.00022557,2]
[337312225,1725593474978,-500.0,0.00022557,2]
[337312226,1725593474987,-500.0,0.00022557,2]
[337312227,1725593474997,-500.0,0.00022557,2]
[337312228,1725593475007,-500.0,0.00022557,2]
[337312229,1725593475017,-500.0,0.00022557,2]
[337312230,1725593475027,-500.0,0.00022557,2]
[337312231,1725593475038,-500.0,0.00022557,2]
[337312232,1725593475048,-500.0,0.00022557,2]
[337312233,1725593475060,-500.0,0.00022557,2]
[337312234,1725593475071,-500.0,0.00022557,2]
[337312235,1725593475083,-500.0,0.00022557,2]
[337312236,1725593475093,-519.95626426,0.00022557,2]
[337312237,1725593475104,-701.01,0.00022557,2]
[337312238,1725593475117,-500.0,0.00022557,2]
[337312239,1725593475127,-500.0,0.00022557,2]
[337312240,1725593475138,-500.0,0.00022557,2]
[337312241,1725593475149,-500.0,0.00022557,2]
[337312242,1725593475161,-214.72405717,0.00022557,2]
[337312243,1725593475174,-500.0,0.00022557,2]
[337312244,1725593475186,-500.0,0.00022557,2]
[337312245,1725593475198,-505.7,0.00022557,2]
[337312246,1725593475209,-500.0,0.00022557,2]
[337312247,1725593475221,-500.0,0.00022557,2]
[337312248,1725593475353,-1058.56,0.00022557,2]
[337312249,1725593475373,-500.0,0.00022557,2]
[337312250,1725593475385,-500.0,0.00022557,2]
[337312251,1725593475399,-515.34802924,0.00022557,2]
[337312252,1725593475410,-500.0,0.00022557,2]
[337312253,1725593475421,-500.0,0.00022557,2]
[337312254,1725593475433,-500.0,0.00022557,2]
[337312255,1725593475443,-500.0,0.00022557,2]
[337312256,1725593475453,-500.0,0.00022557,2]
[337312257,1725593475465,-500.0,0.00022557,2]
[337312258,1725593475478,-500.0,0.00022557,2]
[337312259,1725593475489,-492.21705848,0.00022557,2]
[337312260,1725593475499,-500.0,0.00022557,2]
[337312261,1725593475511,-500.0,0.00022557,2]
[337312262,1725593475522,-500.0,0.00022557,2]
[337312263,1725593475531,-301.86330787,0.00022557,2]
[337312264,1725593475541,-636.39,0.00022557,2]
[337312265,1725593475550,-500.0,0.00022557,2]
[337312266,1725593475560,-1466.92,0.00022557,2]
[337312267,1725593475570,-1269.22,0.00022557,2]
[337312268,1725593475580,-612.19,0.00022557,2]
[337312269,1725593475589,-500.0,0.00022558,2]
[337312270,1725593475605,-1805.39,0.00022558,2]
[337312271,1725593475619,-697.15,0.00022558,2]
[337312272,1725593475630,-987.68,0.00022558,2]
[337312273,1725593475640,-500.0,0.00022558,2]
[337312274,1725593475650,-500.0,0.00022558,2]
[337312275,1725593475660,-500.0,0.00022558,2]
[337312276,1725593475670,-988.36,0.00022558,2]
[337312277,1725593475680,-2185.26,0.00022558,2]
[337312278,1725593475690,-1090.33,0.00022558,2]
[337312279,1725593475701,-1116.36,0.00022558,2]
[337312280,1725593475712,-739.19,0.00022558,2]
[337312281,1725593475724,-500.0,0.00022558,2]
[337312282,1725593475735,-2474.64,0.00022558,2]
[337312283,1725593475747,-500.0,0.00022558,2]
[337312284,1725593475759,-500.0,0.00022558,2]
[337312285,1725593475769,-500.0,0.00022558,2]
[337312286,1725593475780,-604.96,0.00022558,2]
[337312287,1725593475790,-500.0,0.00022558,2]
[337312288,1725593475800,-500.0,0.00022558,2]
[337312289,1725593475810,-774.78,0.00022558,2]
[337312290,1725593475821,-1364.58,0.00022558,2]
[337312291,1725593475831,-500.0,0.00022558,2]
[337312292,1725593475841,-500.0,0.00022558,2]
[337312293,1725593475851,-381.96664649,0.00022558,2]
[337312294,1725593475862,-500.0,0.00022558,2]
[337312295,1725593475872,-500.0,0.00022558,2]
[337312296,1725593475883,-751.48,0.00022558,2]
[337312297,1725593475893,-500.0,0.00022558,2]
[337312298,1725593475903,-1510.68,0.00022558,2]
[337312299,1725593475913,-704.01,0.00022558,2]
[337312300,1725593475923,-836.44,0.00022558,2]
[337312301,1725593475933,-500.0,0.00022558,2]
[337312302,1725593475943,-1159.42,0.00022558,2]
[337312303,1725593475954,-500.0,0.00022558,2]
[337312304,1725593475964,-768.94,0.00022558,2]
[337312305,1725593475974,-500.0,0.00022558,2]
[337312306,1725593475984,-500.0,0.00022558,2]
[337312307,1725593475994,-500.0,0.00022558,2]
[337312308,1725593476006,-3790.5,0.00022558,2]
[337312309,1725593476016,-500.0,0.00022558,2]
[337312310,1725593476026,-151.0,0.00022558,7]
[337312311,1725593476037,-151.0,0.00022558,7]
[337312312,1725593476046,-500.0,0.00022558,2]
[337312313,1725593476056,-151.0,0.00022558,7]
[337312314,1725593476067,-1539.82314921,0.00022568,2]
[337312315,1725593476078,-409.92,0.0002258,2]
[337312316,1725593476088,-608.37,0.0002258,2]
[337312317,1725593476099,-500.0,0.0002258,2]
[337312318,1725593476110,-825.57,0.0002258,2]
[337312319,1725593476120,-500.0,0.0002258,2]
[337312320,1725593476131,-500.0,0.0002258,2]
[337312321,1725593476143,-500.0,0.0002258,2]
[337312322,1725593476155,-697.92655148,0.0002258,2]
[337312323,1725593476165,-500.0,0.0002258,2]
[337312324,1725593476175,-500.0,0.0002258,2]
[337312325,1725593476185,-578.77,0.0002258,2]
[337312326,1725593476197,-442.3558862,0.00022603,2]
[337312327,1725593476207,-156.36140257,0.0002266,2]
[337312328,1725593476219,-420.0,0.00022669,2]
[337312329,1725593476232,-1500.0,0.00022722,2]
[337312330,1725593476243,-877.81440993,0.00022722,2]
[337312331,1725593476262,-2172.16,0.00022812,2]
[337312332,1725593476273,-2026.03,0.00022812,2]
[337312333,1725593476283,-1752.14,0.00022812,2]
[337312334,1725593476293,-500.0,0.00022812,2]
[337312335,1725593476303,-12734.97,0.00022812,2]
[337312336,1725593476312,-2670.35,0.00022812,2]
[337312337,1725593476321,-2272.45,0.00022812,2]
[337312338,1725593476331,-550.57,0.00022812,2]
[337312339,1725593476341,-1764.86,0.00022812,2]
[337312340,1725593476351,-1698.33,0.00022812,2]
[337312341,1725593476362,-500.0,0.00022812,2]
[337312342,1725593476371,-500.0,0.00022812,2]
[337312343,1725593476384,-3979.67,0.00022812,2]
[337312344,1725593476395,-2381.91,0.00022812,2]
[337312345,1725593476405,-2933.35,0.00022812,2]
[337312346,1725593476414,-1314.22,0.00022812,2]
[337312347,1725593476424,-753.41,0.00022812,2]
[337312348,1725593476434,-10717.05,0.00022812,2]
[337312349,1725593476445,-572.53,0.00022812,2]
[337312350,1725593476457,-888.48,0.00022812,2]
[337312351,1725593476468,-1177.07,0.00022812,2]
[337312352,1725593476478,-1252.65,0.00022812,2]
[337312353,1725593476487,-852.67,0.00022812,2]
[337312354,1725593476497,-5146.8,0.00022812,2]
[337312355,1725593476511,-500.0,0.00022812,2]
[337312356,1725593476522,-1996.99,0.00022812,2]
[337312357,1725593476533,-500.0,0.00022812,2]
[337312358,1725593476543,-664.99,0.00022812,2]
[337312359,1725593476553,-500.0,0.00022812,2]
[337312360,1725593476564,-15307.58,0.00022812,2]
[337312361,1725593476573,-2269.72,0.00022812,2]
[337312362,1725593476583,-500.0,0.00022812,2]
[337312363,1725593476594,-1213.59,0.00022812,2]
[337312364,1725593476604,-2344.78,0.00022812,2]
[337312365,1725593476614,-552.35,0.00022812,2]
[337312366,1725593476625,-659.16,0.00022812,2]
[337312367,1725593476636,-504.42,0.00022812,2]
[337312368,1725593476647,-500.0,0.00022812,2]
[337312369,1725593476659,-1321.4,0.00022812,2]
[337312370,1725593476669,-2904.94,0.00022812,2]
[337312371,1725593476680,-2679.31,0.00022812,2]
[337312372,1725593476692,-500.0,0.00022812,2]
[337312373,1725593476703,-3747.51,0.00022812,2]
[337312374,1725593476713,-1683.72,0.00022812,2]
[337312375,1725593476726,-2918.83,0.00022812,2]
[337312376,1725593476736,-1813.24,0.00022812,2]
[337312377,1725593476746,-771.77,0.00022812,2]
[337312378,1725593476758,-500.0,0.00022812,2]
[337312379,1725593476770,-500.0,0.00022812,2]
[337312380,1725593476782,-500.0,0.00022812,2]
[337312381,1725593476793,-1831.36,0.00022812,2]
[337312382,1725593476803,-876.54,0.0002283,2]
[337312383,1725593476814,-596.98,0.0002283,2]
[337312384,1725593476824,-1004.06,0.0002283,2]
[337312385,1725593476833,-542.68,0.0002283,2]
[337312386,1725593476844,-510.55546569,0.0002283,2]
[337312387,1725593476855,-500.0,0.0002283,2]
[337312388,1725593476866,-1328.23,0.0002283,2]
[337312389,1725593476876,-500.0,0.0002283,2]
[337312390,1725593476886,-508.14524577,0.0002283,2]
[337312391,1725593476898,-615.68,0.0002283,2]
[337312392,1725593476909,-863.59,0.0002283,2]
[337312393,1725593476920,-500.0,0.0002283,2]
[337312394,1725593476931,-526.62,0.0002283,2]
[337312395,1725593476943,-508.00200637,0.0002283,2]
[337312396,1725593476954,-1059.43,0.0002283,2]
[337312397,1725593476965,-500.0,0.0002283,2]
[337312398,1725593476974,-505.45620226,0.0002283,2]
[337312399,1725593476985,-500.0,0.0002283,2]
[337312400,1725593476995,-535.55814286,0.0002283,2]
[337312401,1725593477006,-500.0,0.0002283,2]
[337312402,1725593477016,-151.0,0.0002283,7]
[337312403,1725593477026,-500.0,0.0002283,2]
[337312404,1725593477037,-151.0,0.0002283,7]
[337312405,1725593477047,-500.0,0.0002283,2]
[337312406,1725593477057,-1281.9,0.0002283,2]
[337312407,1725593477067,-500.0,0.0002283,2]
[337312408,1725593477079,-500.0,0.0002283,2]
[337312409,1725593477088,-578.93,0.0002283,2]
[337312410,1725593477100,-670.95,0.0002283,2]
[337312411,1725593477110,-2461.39,0.0002283,2]
[337312412,1725593477119,-500.0,0.0002283,2]
[337312413,1725593477132,-500.0,0.0002283,2]
[337312414,1725593477142,-1874.78,0.0002283,2]
[337312415,1725593477152,-973.18,0.0002283,2]
[337312416,1725593477162,-1577.08,0.0002283,2]
[337312417,1725593477172,-500.0,0.0002283,2]
[337312418,1725593477181,-504.97395253,0.0002283,2]
[337312419,1725593477191,-500.0,0.0002283,2]
[337312420,1725593477200,-500.0,0.0002283,2]
[337312421,1725593477209,-638.04,0.0002283,2]
[337312422,1725593477218,-500.0,0.0002283,2]
[337312423,1725593477227,-690.77,0.0002283,2]
[337312424,1725593477236,-300.83870269,0.0002283,2]
[337312425,1725593477246,-500.0,0.0002283,2]
[337312426,1725593477257,-500.0,0.0002283,2]
[337312427,1725593477266,-2150.55,0.0002283,2]
[337312428,1725593477275,-500.0,0.0002283,2]
[337312429,1725593477285,-2199.22,0.0002283,2]
[337312430,1725593477295,-1666.75,0.0002283,2]
[337312431,1725593477304,-3102.05,0.0002283,2]
[337312432,1725593477313,-500.0,0.0002283,2]
[337312433,1725593477322,-12189.54,0.0002283,2]
[337312434,1725593477331,-500.0,0.0002283,2]
[337312435,1725593477342,-1450.49,0.0002283,2]
[337312436,1725593477351,-2127.99,0.0002283,2]
[337312437,1725593477361,-500.0,0.0002283,2]
[337312438,1725593477370,-500.0,0.0002283,2]
[337312439,1725593477379,-500.0,0.0002283,2]
[337312440,1725593477393,-500.0,0.0002283,2]
[337312441,1725593477402,-1010.3,0.0002283,2]
[337312442,1725593477412,-672.49,0.0002283,2]
[337312443,1725593477421,-500.0,0.0002283,2]
[337312444,1725593477431,-1117.75,0.0002283,2]
[337312445,1725593477442,-917.61,0.0002283,2]
[337312446,1725593477451,-655.17,0.0002283,2]
[337312447,1725593477462,-500.0,0.0002283,2]
[337312448,1725593477473,-891.96,0.0002283,2]
[337312449,1725593477483,-500.0,0.0002283,2]
[337312450,1725593477493,-929.52,0.0002283,2]
[337312451,1725593477502,-3772.49,0.0002283,2]
[337312452,1725593477512,-595.04,0.0002283,2]
[337312453,1725593477522,-25483.24,0.0002283,2]
[337312454,1725593477532,-500.0,0.0002283,2]
[337312455,1725593477541,-504.86938069,0.0002283,2]
[337312456,1725593477551,-500.0,0.0002283,2]
[337312457,1725593477560,-387.75542925,0.0002283,2]
[337312458,1725593477570,-510.63695551,0.0002283,2]
[337312459,1725593477579,-500.0,0.0002283,2]
[337312460,1725593477588,-500.0,0.0002283,2]
[337312461,1725593477598,-537.94,0.00022831,2]
[337312462,1725593477608,-563.84,0.00022831,2]
[337312463,1725593477617,-500.0,0.00022831,2]
[337312464,1725593477626,-1853.75,0.00022831,2]
[337312465,1725593477636,-500.0,0.00022831,2]
[337312466,1725593477646,-500.0,0.00022831,2]
[337312467,1725593477655,-686.4,0.00022831,2]
[337312468,1725593477664,-500.0,0.00022831,2]
[337312469,1725593477674,-546.92,0.00022831,2]
[337312470,1725593477683,-500.0,0.00022831,2]
[337312471,1725593477692,-500.0,0.00022831,2]
[337312472,1725593477702,-500.0,0.00022831,2]
[337312473,1725593477711,-500.0,0.00022831,2]
[337312474,1725593477720,-656.95,0.00022831,2]
[337312475,1725593477730,-500.0,0.00022831,2]
[337312476,1725593477740,-500.0,0.00022831,2]
[337312477,1725593477750,-500.0,0.00022831,2]
[337312478,1725593477759,-500.0,0.00022831,2]
[337312479,1725593477769,-500.0,0.00022831,2]
[337312480,1725593477778,-500.0,0.00022831,2]
[337312481,1725593477788,-500.0,0.00022831,2]
[337312482,1725593477797,-499.58985307,0.00022831,2]
[337312483,1725593477806,-500.0,0.00022831,2]
[337312484,1725593477816,-500.0,0.00022831,2]
[337312485,1725593477825,-518.26625716,0.00022831,2]
[337312486,1725593477834,-500.0,0.00022831,2]
[337312487,1725593477844,-245.9504431,0.00022831,2]
[337312488,1725593477854,-500.0,0.00022831,2]
[337312489,1725593477863,-500.0,0.00022831,2]
[337312490,1725593477872,-500.0,0.00022831,2]
[337312491,1725593477881,-500.0,0.00022831,2]
[337312492,1725593477892,-500.0,0.00022831,2]
[337312493,1725593477904,-500.0,0.00022831,2]
[337312494,1725593477913,-500.0,0.00022831,2]
[337312495,1725593477923,-500.0,0.00022831,2]
[337312496,1725593477933,-701.01,0.00022831,2]
[337312497,1725593477942,-500.0,0.00022831,2]
[337312498,1725593477952,-489.22661263,0.00022831,2]
[337312499,1725593477962,-500.0,0.00022831,2]
[337312500,1725593477971,-500.0,0.00022831,2]
[337312501,1725593477981,-518.43925761,0.00022831,2]
[337312502,1725593477990,-500.0,0.00022831,2]
[337312503,1725593477999,-505.7,0.00022831,2]
[337312504,1725593478009,-339.0980116,0.00022831,2]
[337312505,1725593478019,-500.0,0.00022831,2]
[337312506,1725593478028,-1058.56,0.00022831,2]
[337312507,1725593478038,-500.0,0.00022831,2]
[337312508,1725593478048,-500.0,0.00022831,2]
[337312509,1725593478058,-500.0,0.00022831,2]
[337312510,1725593478068,-500.0,0.00022831,2]
[337312511,1725593478079,-500.0,0.00022831,2]
[337312512,1725593478089,-500.0,0.00022831,2]
[337312513,1725593478098,-500.0,0.00022831,2]
[337312514,1725593478108,-531.91785064,0.00022831,2]
[337312515,1725593478118,-500.0,0.00022831,2]
[337312516,1725593478129,-500.0,0.00022831,2]
[337312517,1725593478140,-500.0,0.00022831,2]
[337312518,1725593478151,-500.0,0.00022831,2]
[337312519,1725593478161,-636.39,0.00022831,2]
[337312520,1725593478171,-500.0,0.00022831,2]
[337312521,1725593478181,-1466.92,0.00022831,2]
[337312522,1725593478190,-1269.22,0.00022831,2]
[337312523,1725593478199,-612.19,0.00022831,2]
[337312524,1725593478209,-500.0,0.00022832,2]
[337312525,1725593478220,-1805.39,0.00022832,2]
[337312526,1725593478229,-697.15,0.00022832,2]
[337312527,1725593478240,-987.68,0.00022832,2]
[337312528,1725593478249,-500.0,0.00022832,2]
[337312529,1725593478379,-500.0,0.00022832,2]
[337312530,1725593478393,-500.0,0.00022832,2]
[337312531,1725593478403,-988.36,0.00022832,2]
[337312532,1725593478413,-2185.26,0.00022832,2]
[337312533,1725593478422,-1090.33,0.00022832,2]
[337312534,1725593478433,-1116.36,0.00022832,2]
[337312535,1725593478443,-739.19,0.00022832,2]
[337312536,1725593478455,-500.0,0.00022832,2]
[337312537,1725593478467,-2474.64,0.00022832,2]
[337312538,1725593478477,-500.0,0.00022832,2]
[337312539,1725593478487,-284.69643876,0.00022832,2]
[337312540,1725593478496,-500.0,0.00022832,2]
[337312541,1725593478507,-604.96,0.00022832,2]
[337312542,1725593478516,-500.0,0.00022832,2]
[337312543,1725593478526,-500.0,0.00022832,2]
[337312544,1725593478535,-774.78,0.00022832,2]
[337312545,1725593478545,-1364.58,0.00022832,2]
[337312546,1725593478555,-500.0,0.00022832,2]
[337312547,1725593478565,-500.0,0.00022832,2]
[337312548,1725593478575,-500.0,0.00022832,2]
[337312549,1725593478585,-500.0,0.00022832,2]
[337312550,1725593478595,-751.48,0.00022832,2]
[337312551,1725593478604,-500.0,0.00022832,2]
[337312552,1725593478614,-1510.68,0.00022832,2]
[337312553,1725593478624,-704.01,0.00022832,2]
[337312554,1725593478633,-836.44,0.00022832,2]
[337312555,1725593478642,-500.0,0.00022832,2]
[337312556,1725593478652,-1159.42,0.00022832,2]
[337312557,1725593478662,-500.0,0.00022832,2]
[337312558,1725593478672,-768.94,0.00022832,2]
[337312559,1725593478681,-500.0,0.00022832,2]
[337312560,1725593478691,-500.0,0.00022832,2]
[337312561,1725593478700,-500.0,0.00022832,2]
[337312562,1725593478710,-3790.5,0.00022832,2]
[337312563,1725593478719,-500.0,0.00022832,2]
[337312564,1725593478728,-500.0,0.00022832,2]
[337312565,1725593478738,-151.0,0.00022832,7]
[337312566,1725593478748,-4000.0,0.00022832,2]
[337312567,1725593478759,-4000.0,0.00022832,2]
[337312568,1725593478768,-4000.0,0.00022832,2]
[337312569,1725593478778,-4000.0,0.00022832,2]
[337312570,1725593478787,-4000.0,0.00022832,2]
[337312571,1725593478798,-4000.0,0.00022832,2]
[337312572,1725593478807,-4000.0,0.00022832,2]
[337312573,1725593478817,-4000.0,0.00022832,2]
[337312574,1725593478826,-1794.437912,0.00022832,2]
[337312575,1725593478835,-151.0,0.00022832,7]
[337312576,1725593478845,-608.37,0.00022854,2]
[337312577,1725593478854,-500.0,0.00022854,2]
[337312578,1725593478864,-825.57,0.00022854,2]
[337312579,1725593478873,-500.0,0.00022854,2]
[337312580,1725593478883,-500.0,0.00022854,2]
[337312581,1725593478892,-500.0,0.00022854,2]
[337312582,1725593478901,-500.0,0.00022854,2]
[337312583,1725593478911,-500.0,0.00022854,2]
[337312584,1725593478920,-578.77,0.00022854,2]
[337312585,1725593478929,-240.03831678,0.00023,2]
[337312586,1725593478939,-169.0,0.00023,2]
[337312587,1725593478949,-193.0,0.00023,2]
[337312588,1725593478959,-364.0,0.00023014,2]
[337312589,1725593478968,-2172.16,0.00023086,2]
[337312590,1725593478978,-2026.03,0.00023086,2]
[337312591,1725593478987,-1752.14,0.00023086,2]
[337312592,1725593478997,-500.0,0.00023086,2]
[337312593,1725593479008,-12734.97,0.00023086,2]
[337312594,1725593479017,-2670.35,0.00023086,2]
[337312595,1725593479027,-2272.45,0.00023086,2]
[337312596,1725593479037,-550.57,0.00023086,2]
[337312597,1725593479046,-1764.86,0.00023086,2]
[337312598,1725593479056,-1698.33,0.00023086,2]
[337312599,1725593479065,-500.0,0.00023086,2]
[337312600,1725593479075,-500.0,0.00023086,2]
[337312601,1725593479084,-3979.67,0.00023086,2]
[337312602,1725593479094,-2381.91,0.00023086,2]
[337312603,1725593479104,-2933.35,0.00023086,2]
[337312604,1725593479113,-1314.22,0.00023086,2]
[337312605,1725593479123,-753.41,0.00023086,2]
[337312606,1725593479134,-10717.05,0.00023086,2]
[337312607,1725593479146,-572.53,0.00023086,2]
[337312608,1725593479156,-888.48,0.00023086,2]
[337312609,1725593479166,-1177.07,0.00023086,2]
[337312610,1725593479175,-1252.65,0.00023086,2]
[337312611,1725593479185,-852.67,0.00023086,2]
[337312612,1725593479195,-5146.8,0.00023086,2]